Cogmind - Beta 10.2 @@@ ROGUE MODE // 2021.05.22 @ 12:03:36 Player: Plexion Result: Destroyed by 1C-UTU with 1C-UTU's Sword "Lootmaker" Performance ------------- Evolutions (3) 1500 Regions Visited (9) 1800 Robots Destroyed (93) 465 Value Destroyed (1869) 1869 Prototype IDs (27) 540 Alien Tech Used (0) 0 Bonus (329) 329 TOTAL SCORE: 6503 Bonus ------- Follower Combat Kills 85 Aligned with FarCom 300 Friendly Fire -56 Cogmind --------- Core Integrity 0/700 Matter 236/300 Energy 90/100 System Corruption 0% Temperature Cool (0) Movement Core (1700) Ox33 Location -7/Zion Parts ------- > --- POWER (1) -------- (None) > --- PROPULSION (4) --- (None) > --- UTILITY (6) ------ Improved Heat Sink High-capacity Storage Unit High-capacity Storage Unit High-capacity Storage Unit Advanced Targeting Computer > --- WEAPON (2) ------- Ripper > --- INVENTORY (28) --- Light Nuclear Core Light Nuclear Core Light Treads Improved Carbon-fiber Leg Makeshift Leg Advanced Myomer Leg Advanced Myomer Leg High-capacity Matter Pod (200) Experimental Targeting Computer Medium Reflective Plating Medium Insulated Plating Advanced Component Analysis Suite Mobile Refinery Mk. CCLXVII Hacking Drone Bay (1/1) AS-neutralizer No. 17b Improved EM Pulse Cannon Improved EM Pulse Cannon Light Assault Rifle Flak Gun Gauss Cannon Bore Cannon Proton Missile Launcher Grenade Launcher Rocket Launcher Improved Grenade Launcher Plasma Cutter CR-A16's Pointy Stick Peak State ------------ > --- POWER ------------ Reinforced Fission Core > --- PROPULSION ------- Improved Treads Improved Treads Medium Treads Medium Treads > --- UTILITY ---------- Improved Heat Sink High-capacity Storage Unit High-capacity Storage Unit High-capacity Storage Unit Advanced Targeting Computer Improved Medium Armor Plating > --- WEAPON ----------- 8R-AWN's Boregun 8R-AWN's Boregun > --- INVENTORY -------- Light Nuclear Core Light Nuclear Core Light Treads Improved Carbon-fiber Leg Makeshift Leg Advanced Myomer Leg Advanced Myomer Leg High-capacity Matter Pod Experimental Targeting Computer Medium Reflective Plating Medium Insulated Plating Advanced Component Analysis Suite Mobile Refinery Mk. CCLXVII Hacking Drone Bay AS-neutralizer No. 17b Improved EM Pulse Cannon Improved EM Pulse Cannon Light Assault Rifle Flak Gun Gauss Cannon Bore Cannon Proton Missile Launcher Grenade Launcher Rocket Launcher Improved Grenade Launcher Plasma Cutter Ripper CR-A16's Pointy Stick [Rating: 62] Favorites ----------- Power Reinforced Fission Core Engine Ion Engine Power Core Reinforced Fission Core Propulsion Light Treads Treads Light Treads Utility High-capacity Storage Unit Device Improved Heat Sink Storage High-capacity Storage Unit Processor Advanced Visual Processing Unit Protection Improved Medium Armor Plating Weapon Heavy EM Pulse Gun Energy Gun Heavy EM Pulse Gun Ballistic Gun Light Assault Rifle Ballistic Cannon Gauss Cannon Launcher Grenade Launcher Slashing Weapon Axe Piercing Weapon CR-A16's Pointy Stick Build | -11 -10 -10 -10 -9 -8 -7 -7 -7 -7 ------- Run | Scr Mat Min Exi Min Mat Fac Low Low Zio Slots Evolved 6 | . . . . . 4 2 . . . Power . | . . . . . . . . . . Propulsion 2 | . . . . . 1 1 . . . Utility 4 | . . . . . 3 1 . . . Weapon . | . . . . . . . . . . Parts Attached 107 | 7 10 2 24 . 21 13 6 3 21 Power 5 | 1 . . 3 . 1 . . . . Engine 3 | 1 . . 2 . . . . . . Core 2 | . . . 1 . 1 . . . . Reactor . | . . . . . . . . . . Propulsion 25 | 2 . . 7 . 9 3 1 2 1 Treads 25 | 2 . . 7 . 9 3 1 2 1 Leg . | . . . . . . . . . . Wheel . | . . . . . . . . . . Hover . | . . . . . . . . . . Flight . | . . . . . . . . . . Utility 25 | 1 2 . 2 . 7 4 1 . 8 Device 7 | . . . 1 . 1 1 . . 4 Storage 5 | 1 2 . 1 . 1 . . . . Processor 2 | . . . . . 1 . . . 1 Hackware . | . . . . . . . . . . Protection 11 | . . . . . 4 3 1 . 3 Artifact . | . . . . . . . . . . Weapon 52 | 3 8 2 12 . 4 6 4 1 12 Energy Gun 13 | 3 5 1 4 . . . . . . Energy Cannon . | . . . . . . . . . . Ballistic Gun 17 | . 1 . 6 . 4 3 . . 3 Ballistic Cannon 3 | . . . . . . 1 . . 2 Launcher 12 | . 2 1 2 . . 1 3 . 3 Special Weapon . | . . . . . . . . . . Impact Weapon . | . . . . . . . . . . Slashing Weapon 6 | . . . . . . 1 1 1 3 Piercing Weapon 1 | . . . . . . . . . 1 Special Melee Weapon . | . . . . . . . . . . Unidentified Prototypes 4 | . . . 2 . . . . . 2 Parts Lost 32 | . 1 1 11 . 1 7 2 . 9 Power 3 | . . . 2 . . . . . 1 Propulsion 13 | . . . 4 . 1 2 1 . 5 Utility 5 | . . . . . . 3 1 . 1 Weapon 11 | . 1 1 5 . . 2 . . 2 Highest Loss Streak 8 | . 1 1 4 . 1 4 2 . 8 Average Slot Usage (%) 96 | . 94 100 93 100 97 98 91 100 97 Engine 4 | . 14 14 7 . . . . . . Core 5 | . . . 4 14 9 7 7 7 6 Treads 28 | . 28 28 28 28 26 28 26 30 29 Device 2 | . . . . . . 1 7 7 7 Storage 24 | . 23 28 27 28 20 23 23 23 23 Processor 4 | . . . . . 8 7 7 7 7 Protection 5 | . . . . . 13 13 3 7 6 Energy Gun 8 | . 23 27 15 . . . . . . Ballistic Gun 6 | . 3 . 6 14 18 7 7 7 . Ballistic Cannon 1 | . . . . . . 3 . . 4 Launcher 1 | . . . . 14 . . 3 . 1 Slashing Weapon 1 | . . . . . . 3 3 6 4 Naked Turns . | . . . . . . . . . . Heaviest Build 139 | 13 75 75 95 95 124 138 135 135 139 Greatest Support 102 | 40 40 40 46 40 63 94 99 99 102 Greatest Overweight (x) 2 | . 1 1 2 2 1 2 1 1 1 Average Overweight (x) 1 | . . 1 1 2 1 1 1 1 1 Largest Inventory Capacity 28 | 6 20 20 20 20 28 28 28 28 28 Average Capacity 23 | 4 15 20 19 20 22 28 28 28 28 Most Carried 28 | 3 17 19 20 18 24 24 25 25 28 Average Carried 20 | 1 8 18 17 18 20 21 23 23 27 Final Capacity 28 | 6 20 20 20 20 28 28 28 28 28 Final Carried 27 | 2 17 19 18 18 24 23 23 25 27 Class Distribution -------------------- 93% | Hauler-Mutant 3% | Mutant Dominant Class ---------------- Hauler-Mutant | -10/Materials Hauler-Mutant | -10/Mines Hauler-Mutant | -10/Exiles Hauler-Mutant | -9/Mines Hauler-Mutant | -8/Materials Hauler-Mutant | -7/Factory Hauler-Mutant | -7/Lower Caves Hauler-Mutant | -7/Lower Caves Hauler-Mutant | -7/Zion Resources | -11 -10 -10 -10 -9 -8 -7 -7 -7 -7 ----------- Run | Scr Mat Min Exi Min Mat Fac Low Low Zio Matter Collected 3249 | 246 155 50 827 . 362 394 107 169 939 Remotely . | . . . . . . . . . . Salvage Created 3332 | . 273 401 645 . 590 522 86 129 686 Parts 243 | . 20 25 80 . 27 26 9 4 52 Haulers Intercepted 5 | . 2 . . . 3 . . . . Recyclers Shooed 4 | . 2 . . . . 2 . . . Parts Field Recycled . | . . . . . . . . . . Retrieved Matter . | . . . . . . . . . . Parts Self-Destructed 10 | . . . . . . . 8 2 . Prevented 1 | . . . . . . . . . 1 Kills | -11 -10 -10 -10 -9 -8 -7 -7 -7 -7 ------- Run | Scr Mat Min Exi Min Mat Fac Low Low Zio Combat Hostiles Destroyed 47 | . 9 10 3 . 7 8 5 3 2 Melee 2 | . . . . . . 1 . 1 . Guns 19 | . 3 6 1 . 7 1 1 . . Cannons 2 | . . . . . . 2 . . . AOE 23 | . 6 3 2 . . 4 4 2 2 Classes Destroyed 16 | . 5 1 3 . 3 1 1 . 2 Builder 1 | . . 1 . . . . . . . Tunneler 1 | . . . . . 1 . . . . Hauler 5 | . 2 . . . 3 . . . . Recycler 7 | . 1 1 . . 1 4 . . . Turret 1 | . . . 1 . . . . . . Watcher 1 | . 1 . . . . . . . . Swarmer 19 | . 8 4 . . . 4 3 . . Grunt 13 | . 1 6 . . 5 . 1 . . Brawler 1 | . . . . . 1 . . . . Duelist 3 | . . . . . . . 1 2 . Sentry 5 | . . . . . 1 3 . 1 . Programmer 1 | . . . . . . 1 . . . Zionite 30 | . . . 8 . 1 . . . 21 Tinkerer 3 | . . . . . . . . . 3 Assembled 2 | . . . 2 . . . . . . Thug 1 | . . . . . . . . . 1 Mutant 1 | . . . . . . . . . 1 Best Kill Streak 8 | . 3 3 4 . 3 4 3 2 8 Combat Bots Only 4 | . 3 3 2 . 3 4 3 2 1 Max Kills in Single Turn 3 | . 3 2 1 . 1 3 3 2 2 Gunslinging . | . . . . . . . . . . Exploded 3 | . 3 2 1 . . 3 3 2 1 Melee 1 | . . . . . . 1 . 1 . Uniques/NPCs Destroyed 4 | . . . 4 . . . . . . 8R-AWN (-10/Exiles) EX-DEC (-10/Exiles) EX-BIN (-10/Exiles) EX-HEX (-10/Exiles) Combat | -11 -10 -10 -10 -9 -8 -7 -7 -7 -7 -------- Run | Scr Mat Min Exi Min Mat Fac Low Low Zio Damage Taken 7084 | . 209 323 1687 . 1440 1390 225 85 1725 Core 1023 | . 41 34 166 . 80 157 15 13 517 Absorbed by Shields . | . . . . . . . . . . Core Remaining (%) 62 | 100 . . . 3 85 . . . . Volleys Fired 384 | . 25 25 122 . 79 25 9 4 95 Largest 2 | . 2 2 2 . 2 2 1 1 2 Hottest 90 | . 80 90 90 . 43 71 36 36 60 Shots Fired 606 | . 39 47 213 . 155 37 10 3 102 Gun 521 | . 36 44 210 . 155 19 2 . 55 Cannon 29 | . . . . . . 13 . . 16 Launcher 56 | . 3 3 3 . . 5 8 3 31 Special . | . . . . . . . . . . Kinetic 418 | . 6 . 152 . 155 32 2 . 71 Thermal 49 | . . . 49 . . . . . . Explosive 27 | . 3 3 3 . . 5 8 3 2 Electromagnetic 112 | . 30 44 9 . . . . . 29 Robot Hit Streak 50 | . 5 10 50 . 23 19 5 5 18 Robot Miss Streak 5 | . 4 2 5 . 3 5 5 . 2 Penetration Max 1 | . . . 1 . . . . . 1 Secondary Targets 5 | . . 1 . . 4 . . . . Max Gunslinging Chain 1 | . . 1 . . 1 . . . . Autonomous 49 | . . . 49 . . . . . . Shots Hit Robots 464 | . 26 33 162 . 112 45 7 4 75 Core Hits 191 | . 15 14 45 . 39 21 13 9 35 Critical Hits 47 | . 1 . 24 . . . . . 22 Critical Kills 15 | . 1 . 8 . . . . . 6 Critical Parts Destroyed 25 | . . . 13 . . . . . 12 Melee Attacks 135 | . . . . . . 12 . 2 121 Impact . | . . . . . . . . . . Slashing 17 | . . . . . . 12 . 2 3 Piercing 118 | . . . . . . . . . 118 Sneak Attacks 5 | . . . . . . 5 . . . Combat Hostiles . | . . . . . . . . . . Follow-up Attacks . | . . . . . . . . . . Damage Inflicted 9074 | . 603 754 2064 . 1053 1621 503 267 2209 Guns 4875 | . 295 484 1959 . 1053 273 42 . 769 Cannons 631 | . . . . . . 314 . . 317 Explosions 2720 | . 298 270 105 . . 289 461 200 1097 Melee 838 | . . . . . . 745 . 67 26 Ramming 10 | . 10 . . . . . . . . Kinetic 4021 | . 27 . 1226 . 1053 587 42 . 1086 Thermal 725 | . . . 725 . . . . . . Explosive 1707 | . 298 270 105 . . 289 461 200 84 Electromagnetic 1773 | . 268 484 8 . . . . . 1013 Impact . | . . . . . . . . . . Slashing 838 | . . . . . . 745 . 67 26 Piercing . | . . . . . . . . . . Highest Corruption 6 | . . . . . . 6 6 6 6 Average Corruption 4 | . . . . . . 2 6 6 6 Corruption Purged . | . . . . . . . . . . Effects 69 | . . . . . . 15 23 22 9 Message Errors 19 | . . . . . . 4 4 9 2 Matter Fused 12 | . . . . . . . 4 5 3 Heat Flow Errors 11 | . . . . . . 4 4 2 1 Energy Discharges 8 | . . . . . . 3 4 . 1 Parts Rejected 1 | . . . . . . . . 1 . Data Loss (minor) 8 | . . . . . . 2 2 2 2 Data Loss (major) 3 | . . . . . . . 1 2 . Misfires 1 | . . . . . . . 1 . . Targeting Errors 4 | . . . . . . 1 3 . . Weapon Failures 2 | . . . . . . 1 . 1 . Overload Shots . | . . . . . . . . . . Overflow Damage 194 | . 4 25 . . . 164 . . 1 Projectiles 1 | . . . . . . . . . 1 Explosions 29 | . 4 25 . . . . . . . Melee 164 | . . . . . . 164 . . . Knockbacks 3 | . . . . . . . . . 3 Impact . | . . . . . . . . . . Kinetic 3 | . . . . . . . . . 3 Secondary . | . . . . . . . . . . Self-Inflicted Damage 140 | . 16 50 . . . 74 . . . Shots 6 | . 2 2 . . . 2 . . . Rammed . | . . . . . . . . . . Targets Rammed 2 | . 2 . . . . . . . . Kicked . | . . . . . . . . . . Crushed 2 | . 2 . . . . . . . . Highest Temperature 396 | . 138 243 64 . 396 214 115 230 103 Average Temperature 82 | . 44 95 20 . 131 84 59 121 56 Received Heat Transfer 1343 | . 36 120 20 . 693 354 48 36 36 Effects 3 | . . . . . 3 . . . . Energy Bleed 1 | . . . . . 1 . . . . Interference 1 | . . . . . 1 . . . . Matter Decay 1 | . . . . . 1 . . . . Siege Activations . | . . . . . . . . . . Robots Corrupted 4 | . . 1 . . . . . . 3 Combat Hostiles 1 | . . 1 . . . . . . . Parts Fried 11 | . 1 2 . . . . . . 8 Impact Corruptions . | . . . . . . . . . . Robots Melted . | . . . . . . . . . . Combat Hostiles . | . . . . . . . . . . Parts Melted . | . . . . . . . . . . Heat Transferred 441 | . . . 441 . . . . . . Parts Sabotaged . | . . . . . . . . . . Parts Stolen . | . . . . . . . . . . Parts Stripped . | . . . . . . . . . . Power Chain Reactions 2 | . . . . . . . . . 2 Missiles Intercepted . | . . . . . . . . . . Alert | -11 -10 -10 -10 -9 -8 -7 -7 -7 -7 ------- Run | Scr Mat Min Exi Min Mat Fac Low Low Zio Peak Influence 245 | . 245 126 . 56 175 115 . . . Initial 21 | . . 1 . . 21 . . . . Average 62 | . 106 101 . 37 36 40 . . . Maximum Alert Level 1 | . 1 . . . . . . . . Low Security (%) 99 | 100 95 100 . 100 100 100 . . . Level 1 . | . 4 . . . . . . . . Level 2 . | . . . . . . . . . . Level 3 . | . . . . . . . . . . Level 4 . | . . . . . . . . . . Level 5 . | . . . . . . . . . . High Security . | . . . . . . . . . . Max Security . | . . . . . . . . . . Squads Dispatched 5 | . 1 . . . 2 2 . . . Investigation 1 | . . . . . . 1 . . . Extermination 1 | . . . . . . 1 . . . Reinforcement 3 | . 1 . . . 2 . . . . Assault . | . . . . . . . . . . Garrison . | . . . . . . . . . . Intercept . | . . . . . . . . . . Construction Impeded . | . . . . . . . . . . Haulers Reinforced . | . . . . . . . . . . Stealth | -11 -10 -10 -10 -9 -8 -7 -7 -7 -7 --------- Run | Scr Mat Min Exi Min Mat Fac Low Low Zio Distress Signals 3 | . . . . . 2 1 . . . Communications Jammed . | . . . . . . . . . . Distress Signals . | . . . . . . . . . . Times Spotted 116 | . 17 9 24 1 12 13 7 3 30 Peak Tracking Total 10 | . 3 3 10 1 4 4 4 3 6 Tactical Retreats 12 | . . . 4 . . . 1 . 7 Traps | -11 -10 -10 -10 -9 -8 -7 -7 -7 -7 ------- Run | Scr Mat Min Exi Min Mat Fac Low Low Zio Traps Triggered 3 | . . . . . 1 2 . . . Indirectly . | . . . . . . . . . . Trap Hack Attempts . | . . . . . . . . . . Triggered . | . . . . . . . . . . Disarmed . | . . . . . . . . . . Reprogrammed . | . . . . . . . . . . Reused . | . . . . . . . . . . Traps Extracted . | . . . . . . . . . . Installed . | . . . . . . . . . . Triggered . | . . . . . . . . . . Exploded 3 | . . . 3 . . . . . . Machines | -11 -10 -10 -10 -9 -8 -7 -7 -7 -7 ---------- Run | Scr Mat Min Exi Min Mat Fac Low Low Zio Machines Disabled 14 | . 2 . 12 . . . . . . Max in Single Turn 2 | . 1 . 2 . . . . . . Machines Sabotaged . | . . . . . . . . . . Garrisons Compromised . | . . . . . . . . . . Overloaded Fab Kills . | . . . . . . . . . . Fab Network Shutdowns . | . . . . . . . . . . Hacking | -11 -10 -10 -10 -9 -8 -7 -7 -7 -7 --------- Run | Scr Mat Min Exi Min Mat Fac Low Low Zio Machines Accessed 11 | . 3 . 2 . 3 2 . . 1 Terminals 7 | . 2 . . . 3 2 . . . Fabricators . | . . . . . . . . . . Repair Stations . | . . . . . . . . . . Recycling Units 1 | . 1 . . . . . . . . Scanalyzers . | . . . . . . . . . . Garrison Access . | . . . . . . . . . . Total Hacks 24 | . 5 . 2 . 8 5 . . 4 Successful 14 | . 2 . 2 . 5 1 . . 4 Failed 10 | . 3 . . . 3 4 . . . Catastrophic 1 | . . . . . . 1 . . . Database Lockouts . | . . . . . . . . . . Manual 13 | . 3 . 1 . 6 3 . . . Terminals 16 | . 3 . . . 8 5 . . . Fabricators . | . . . . . . . . . . Repair Stations . | . . . . . . . . . . Recycling Units 2 | . 2 . . . . . . . . Scanalyzers . | . . . . . . . . . . Garrison Access . | . . . . . . . . . . Terminal Hacks 10 | . 1 . 2 . 2 1 . . 4 Record 1 | . . . 1 . . . . . . Part Schematic 4 | . . . . . . . . . 4 Branch Access Points 1 | . . . . . . 1 . . . Hauler Manifests 1 | . . . . . 1 . . . . Zone Layout 2 | . 1 . . . 1 . . . . EX-Prototype ID Bank 1 | . . . 1 . . . . . . Fabricator Hacks . | . . . . . . . . . . Repair Station Hacks . | . . . . . . . . . . Recycling Unit Hacks 1 | . 1 . . . . . . . . Retrieve Components 1 | . 1 . . . . . . . . Scanalyzer . | . . . . . . . . . . Garrison Access Hacks . | . . . . . . . . . . Unauthorized Hacks 3 | . . . . . 3 . . . . Terminals 3 | . . . . . 3 . . . . Track 2 | . . . . . 2 . . . . Botnet 1 | . . . . . 1 . . . . Fabricators . | . . . . . . . . . . Repair Stations . | . . . . . . . . . . Recycling Units . | . . . . . . . . . . Scanalyzers . | . . . . . . . . . . Garrison Access . | . . . . . . . . . . Data Cores Recovered . | . . . . . . . . . . Used . | . . . . . . . . . . Hacking Detections 7 | . 2 . . . 3 2 . . . Full Trace Events 1 | . . . . . . 1 . . . Feedback Events . | . . . . . . . . . . Feedback Blocked . | . . . . . . . . . . Robot Schematics Acquired . | . . . . . . . . . . Robots Built . | . . . . . . . . . . Matter . | . . . . . . . . . . Time . | . . . . . . . . . . Total Robot Build Rating . | . . . . . . . . . . Part Schematics Acquired 4 | . . . . . . . . . 4 Parts Built . | . . . . . . . . . . Matter . | . . . . . . . . . . Time . | . . . . . . . . . . Total Part Build Rating . | . . . . . . . . . . Parts Repaired . | . . . . . . . . . . Time . | . . . . . . . . . . Parts Recycled . | . . . . . . . . . . Recycled Matter . | . . . . . . . . . . Retrieved Matter . | . . . . . . . . . . Retrieved Components 4 | . 4 . . . . . . . . Parts Scanalyzed . | . . . . . . . . . . Part Schematics Acquired . | . . . . . . . . . . Parts Damaged . | . . . . . . . . . . Bothacking | -11 -10 -10 -10 -9 -8 -7 -7 -7 -7 ------------ Run | Scr Mat Min Exi Min Mat Fac Low Low Zio Used RIF Installer . | . . . . . . . . . . Robots Hacked . | . . . . . . . . . . Non-combat . | . . . . . . . . . . Combat . | . . . . . . . . . . Robot Hacks Applied . | . . . . . . . . . . Relay Couplers Released . | . . . . . . . . . . Robots Rewired . | . . . . . . . . . . Allies Hacked . | . . . . . . . . . . Hacks Repelled . | . . . . . . . . . . Allies | -11 -10 -10 -10 -9 -8 -7 -7 -7 -7 -------- Run | Scr Mat Min Exi Min Mat Fac Low Low Zio Total Allies 2 | . . . . 2 . . . . . Largest Group 2 | . . . . 2 2 . . . . Highest-Rated Group 47 | . . . . 47 47 . . . . Highest-Rated Ally 31 | . . . . 31 31 . . . . Total Orders . | . . . . . . . . . . Ally Attacks 11 | . . . . 6 5 . . . . Total Damage 145 | . . . . 61 84 . . . . Kills 3 | . . . . 2 1 . . . . Allies Corrupted . | . . . . . . . . . . Allies Melted . | . . . . . . . . . . Intel | -11 -10 -10 -10 -9 -8 -7 -7 -7 -7 ------- Run | Scr Mat Min Exi Min Mat Fac Low Low Zio Robot Analysis Total . | . . . . . . . . . . Derelict Logs Recovered 4 | . . . . 2 . . . 2 . Drone Launches . | . . . . . . . . . . Drone Recoveries . | . . . . . . . . . . Exploration | -11 -10 -10 -10 -9 -8 -7 -7 -7 -7 ------------- Run | Scr Mat Min Exi Min Mat Fac Low Low Zio Turns Passed 10097 | 78 911 788 2384 372 1261 1019 581 590 2113 Spaces Moved 4556 | 44 468 393 1082 186 519 429 303 311 821 Core 3 | 3 . . . . . . . . . Treads 4553 | 41 468 393 1082 186 519 429 303 311 821 Legs . | . . . . . . . . . . Wheels . | . . . . . . . . . . Hover . | . . . . . . . . . . Flight . | . . . . . . . . . . Fastest Speed 50 | 50 160 180 180 200 180 182 182 182 180 Average Speed 183 | 152 173 180 186 200 184 187 182 182 181 Slowest Speed 206 | 160 180 180 200 200 186 206 183 183 182 Overloaded Moves . | . . . . . . . . . . Propulsion Burnouts . | . . . . . . . . . . Robots Hopped . | . . . . . . . . . . Cave-ins Triggered . | . . . . . . . . . . Exploration Rate (%) 54 | 3 78 71 91 48 38 12 58 63 82 Regions Visited 9 Branch Regions 6 Pre-discovered Areas 2 | . . . 1 . . . . 1 . Known Exits Taken 1 | . . . . . . 1 . . . Unknown Exits Taken 8 | 1 1 1 1 1 1 . 1 1 . Scrap Searched 7 | . . 1 . . . . 1 2 3 Spaces Dug 3 | . . . . . . 1 . . 2 Terrain Destroyed 128 | . 8 23 27 . . 12 39 15 4 Melee 3 | . . . . . . 1 . . 2 Projectile 15 | . . . 13 . . 1 . . 1 AOE 110 | . 8 23 14 . . 10 39 15 1 Terrain Rammed . | . . . . . . . . . . Walls Destroyed . | . . . . . . . . . . Machines Disabled . | . . . . . . . . . . Actions | -11 -10 -10 -10 -9 -8 -7 -7 -7 -7 --------- Run | Scr Mat Min Exi Min Mat Fac Low Low Zio Total 5518 | 53 526 427 1306 187 696 586 320 327 1090 Wait 227 | . 7 4 43 2 56 97 1 5 12 Move 4547 | 43 467 392 1081 185 518 428 302 310 821 Hop . | . . . . . . . . . . Pick Up 69 | 2 14 3 19 . 10 8 2 2 9 Fast Attach 22 | 6 1 . 3 . 5 2 . 1 4 Attach 32 | 1 1 2 12 . 2 8 2 . 4 Detach 10 | 1 . 1 4 . . 1 . . 3 Swap 53 | . 8 . 9 . 14 3 4 2 13 Drop 37 | . 1 . 13 . 12 2 . 1 8 Fire 384 | . 25 25 122 . 79 25 9 4 95 Melee 135 | . . . . . . 12 . 2 121 Ram . | . . . . . . . . . . Kick . | . . . . . . . . . . Crush 2 | . 2 . . . . . . . . Escape Stasis . | . . . . . . . . . . Rewire . | . . . . . . . . . . Trap . | . . . . . . . . . . Miscellaneous . | . . . . . . . . . . Route ------- -11/Scrapyard -10/Materials (discovered 4 exits: [*Mat x2] / [*Min x2]) -10/Mines (discovered 2 exits: [*Mat] / *Exi) -10/Exiles (discovered 2 exits: [*Min x2]) -9/Mines -8/Materials -7/Factory (discovered 3 exits: [*Fac] / *Low x2) -7/Lower Caves -7/Lower Caves (discovered 2 exits: [*Fac] / *Zio) -7/Zion (discovered 1 exit: [*Pro]) History --------- Turn | Location | Event 4 | -11/Scrapyard | Discovered new exit (range 15) 79 | -11/Scrapyard | Entered Materials 149 | -10/Materials | Discovered new exit (range 6) 281 | -10/Materials | Discovered new exit (range 8) 314 | -10/Materials | Build established: Mutant 676 | -10/Materials | Build established: Hauler-Mutant 726 | -10/Materials | Discovered new exit (range 16) 953 | -10/Materials | Discovered new exit (range 14) 990 | -10/Materials | Entered Mines 997 | -10/Mines | Met a Derelict bent on vengeance 1032 | -10/Mines | Received a Rocket Launcher from a helpful Derelict 1248 | -10/Mines | Discovered new exit (range 15) 1759 | -10/Mines | Assembled infested the area 1769 | -10/Mines | Deemed a non-threat by the Exiles lab entrance 1770 | -10/Mines | Discovered new exit (range 5) 1778 | -10/Mines | Entered Exiles 1805 | -10/Exiles | Discovered new exit (range 15) 1823 | -10/Exiles | Met 8R-AWN 1850 | -10/Exiles | Met EX-HEX 1944 | -10/Exiles | Met EX-DEC 1975 | -10/Exiles | Learned location of Zion (-7) 2097 | -10/Exiles | Met EX-BIN 2119 | -10/Exiles | Aligned with FarCom system 2120 | -10/Exiles | Given EX-Vault access code 2167 | -10/Exiles | Opened EX-Vault 2186 | -10/Exiles | Found AWS/Thermal 2226 | -10/Exiles | Warned to stay clear of 0b10 Research branches 2385 | -10/Exiles | Discovered new exit (range 11) 3055 | -10/Exiles | Attacked by the Exiles 3189 | -10/Exiles | Lost 4 parts (1p3w) 3197 | -10/Exiles | Core integrity fell below 50% 3227 | -10/Exiles | Lost 3 parts (2n1w) 3240 | -10/Exiles | Core integrity fell below 20% 3315 | -10/Exiles | Destroyed 8R-AWN 3316 | -10/Exiles | Lost 3 parts (2n1w) 3324 | -10/Exiles | Found Prototype Ballistic Gun 3324 | -10/Exiles | Identified 8R-AWN's Boregun 3328 | -10/Exiles | Found 8R-AWN's Boregun 3333 | -10/Exiles | Found Prototype Device 3333 | -10/Exiles | Identified AS-neutralizer No. 17b 3353 | -10/Exiles | Found Prototype Processor 3810 | -10/Exiles | Destroyed EX-DEC 3812 | -10/Exiles | Destroyed EX-BIN 3916 | -10/Exiles | Destroyed EX-HEX 4162 | -10/Exiles | Entered Mines 4168 | -9/Mines | Learned location of 1 exit from Proximity Caves 4302 | -9/Mines | Learned Materials security intel 4522 | -9/Mines | Discovered new exit (range 6) 4534 | -9/Mines | Entered Materials 4534 | -8/Materials | Accompanied by 2 allies 4534 | -8/Materials | Evolved 4 slots: Propulsion x1, Utility x3 4539 | -8/Materials | Led the pair of lost Derelicts to an unsafe place 4955 | -8/Materials | Build established: Scavenger-Mutant 5264 | -8/Materials | Build established: Hauler-Mutant 5732 | -8/Materials | Discovered new exit (range 3) 5795 | -8/Materials | Entered Factory 5795 | -7/Factory | Evolved 2 slots: Propulsion x1, Utility x1 6144 | -7/Factory | Lost 4 parts (1n2u1w) 6264 | -7/Factory | Discovered new exit (range 12) 6383 | -7/Factory | Identified exit to Lower Caves 6814 | -7/Factory | Entered Lower Caves 6989 | -7/Lower Caves | Spotted B-75 Beast 7306 | -7/Lower Caves | Discovered new exit (range 13) 7395 | -7/Lower Caves | Entered another Lower Caves area 7405 | -7/Lower Caves | Learned location of 1 exit from Proximity Caves 7411 | -7/Lower Caves | Attracted the attention of an 0b10 checkpoint 7414 | -7/Lower Caves | Discovered new exit (range 19) 7797 | -7/Lower Caves | Discovered new exit (range 15) 7985 | -7/Lower Caves | Entered Zion 8013 | -7/Zion | Found CR-A16's Pointy Stick 8073 | -7/Zion | Found Prototype Device 8088 | -7/Zion | Discovered new exit (range 16) 8293 | -7/Zion | System corruption cleaned by Quarantine Array 8381 | -7/Zion | Received a visual enhancement algorithm 9022 | -7/Zion | Given the Hacking Drone Bay 9026 | -7/Zion | Found Prototype Device 9026 | -7/Zion | Identified Hacking Drone Bay 9031 | -7/Zion | Identified Mobile Refinery Mk. CCLXVII 9078 | -7/Zion | Acquired unknown access codes intercepted by a Zionite 9714 | -7/Zion | Attacked by Zionites 10071 | -7/Zion | 1C-UTU came to Zion's defense 10091 | -7/Zion | Core integrity fell below 50% 10098 | -7/Zion | Core integrity fell below 20% 10098 | -7/Zion | Destroyed by 1C-UTU with 1C-UTU's Sword "Lootmaker" Last Messages --------------- 10083_ Rnf. Fission Core destroyed. 10083_ Imp. Medium Armor Plating destroyed. 10085_ HV Slug penetrates 1C-UTU. 10086_ Med. Treads destroyed. 10088_ HV Slug penetrates 1C-UTU. 10088_ HV Slug penetrates Wall. 10088_ HV Slug penetrates 1C-UTU. 10088_ HV Slug penetrates Wall. 10090_ 1C-UTU follow-up attacks with Prototype Slashing Weapon. 10091_ Critical hit. 10091_ Imp. Treads destroyed. 10091_ HV Slug penetrates 1C-UTU. 10091_ HV Slug penetrates Wall. 10091_ HV Slug penetrates 1C-UTU. 10093_ Critical hit. 10093_ 8R-AWN's Boregun destroyed. 10094_ Med. Treads destroyed. 10094_ 1C-UTU follow-up attacks with Prototype Slashing Weapon. 10094_ 8R-AWN's Boregun destroyed. 10096_ 1C-UTU follow-up attacks with Prototype Slashing Weapon. Map ----- +----------------------------------------------------+ | ?????????????????????????????????????????????????? | | ?????????????????????????????????????????????????? | | ?????????????????????????????????????????????????? | | ?????????????????????????????????????????????????? | | ?????????????????????????????????????????????????? | | ?????????????????????????????????????????????????? | | ?????????????????????????????????????????????????? | | ????????????####?????????????????????????????????? | | ???????????##""##????????????????????????????????? | | ???????????#""""#????????????????????????????????? | | ???????????#""""#????????????????????????????????? | | ???????????# """#????????????????#####???????????? | | ???????????# X ###??????????????#"""#??##???????? | | #####??????# "#???????###???##" "###"#???????? | | """"#??????#" #???????#"#####" / % "##?????### | | """#???????#"" #?????###"" """"" #"#????##"# | | "##??????#" ###???#""" """" ###??#""" | | ""########" #####"" "##?#" " | | """""#"""" ##"""" ""### | | """"""" #""" ! """"" ""##"" | | ##""" !%*"###"" ""#"" | | ###"" =###?#"""""" """ | | """"""""" % ##" ###"#""#""" "" | | " "#"#""""""" = ##"" #####"""" | | ""#######"" ####"" """""""""" | | """#????##" = #" # @ #""""""""" | | """#?????#"# * / * l ""#"" | | ""#?????#"" ! * % "##"" | | " ""####??# // / % """"" | | " ""#"""### !! """"" | | " """"""""" * % "#""" | | "" " "# = "#""" | | " *%= [ !"##"" | | = = * *%"###" | | === !"##""" | | %= [%* [%= % """""" | | ==[[% ##%#=/# """"" | | % " | | / """ # "" | | # """###"######"#" """" | | " ## """"""#"#?###????##"" """" | | " "?#"""""""""""####?????????##" """" | | #?###"""#######?????????????#" """ | | ""????#####?????????????????###" "" | | "#????????????????????#######"#" """ | | "?????????????????????#""#X""""" """""" | | ??????????????????????#" "" """"""" | | " ???????????????????????#" " """""""" | | ""???????????????????????#" " """"" | | ""???????????????????????#""# " | +----------------------------------------------------+ Best States ------------- Heat Dissipation 48 Energy Generation 19 Energy Capacity 310 Matter Stores 300 Matter Capacity 300 Sight Range 20 Terrain Scan Density 10 Armor Coverage 375 Resistance: EM 15 Evasion (%) 40 Targeting Accuracy 8 Recoil Reduction 4 Item Schematics ----------------- Riot Gun | -7/Zion | Free Battle Rifle | -7/Zion | Free Barrage Gun | -7/Zion | Free Slug Cannon | -7/Zion | Free Robot Schematics ------------------ None Fabricated ------------ Nothing Alien Tech Used ----------------- None Achievements -------------- None Challenges ------------ None Game ------ Seed PowerChipNanovents Manual? 0 Play Time 00:53:58 Cumulative 159.0 hours Start 2021.05.22 @ 11:03:04 End 2021.05.22 @ 12:03:36 Sessions 1 Manual Loads 0 Difficulty Rogue Special Mode None Game No. 200 Rogue 113 Adventurer 87 Explorer 0 Win Type - Total 4 Types 3/0/0/1/0/0/0/0/0 Lore% 62 Gallery% 71 Achievement% 58 Wizard Run 0 Options --------- ASCII 0 Keyboard 1 Movement Numpad Keybinds 0 Fullscreen 1 Font 18/Smallcaps Map View 76x50 Tactical HUD 1 Map Filters NONE Filters NONE Steam 1 RUN: 8f615a51-f82a-4431-aa0c-62c7720c445c